bitfinex-derivatives/quotes_SOLF0:USTF0_20241029
["timestamp","ask_amount","ask_price","bid_price","bid_amount"]
[1730198608095,4.18,181.34,181.32,5.93941466]
[1730198608496,6.9388,181.34,181.32,5.93941466]
[1730198613102,4.18,181.34,181.32,5.93941466]
[1730198613307,4.18,181.34,181.31,2.7591]
[1730198613498,10.11941466,181.34,181.2,4.14]
[1730198613704,10.11941466,181.34,181.28,5.93941466]
[1730198614007,2.7591,181.32,181.28,8.69901466]
[1730198614403,4.18,181.34,181.2,5.5216]
[1730198614600,4.18,181.34,181.31,5.93941466]
[1730198615312,6.9388,181.34,181.31,5.93941466]
[1730198615912,6.9388,181.34,181.32,5.93941466]
[1730198617404,4.18,181.34,181.24,1.2344]
[1730198617609,4.18,181.34,181.32,5.93941466]
[1730198617913,6.9388,181.34,181.32,5.93941466]
[1730198618408,4.18,181.34,181.32,5.93941466]
[1730198618712,2.7586,181.35,181.32,5.93941466]
[1730198618911,4.14,181.34,181.32,5.93941466]
[1730198619108,6.8987,181.34,181.3,2.7593]
[1730198619310,6.8987,181.34,181.32,5.93941466]
[1730198619607,4.14,181.34,181.32,5.93941466]
[1730198620316,2.7589,181.33,181.32,5.93941466]
[1730198621516,6.8988,181.34,181.32,5.93941466]
[1730198622621,10.07941466,181.34,181.25,2.3873]
[1730198622818,10.07941466,181.34,181.28,5.93941466]
[1730198623817,2.7591,181.32,181.28,5.93941466]
[1730198626631,2.7591,181.32,181.28,8.69901466]
[1730198627119,2.7591,181.32,181.3,5.93941466]
[1730198627723,4.14,181.34,181.3,5.93941466]
[1730198627724,2.7589,181.33,181.3,5.93941466]
[1730198629933,2.7589,181.33,181.31,5.93941466]
[1730198630336,6.8988,181.34,181.31,5.93941466]
[1730198630536,4.14,181.34,181.31,5.93941466]
[1730198631932,2.7587,181.34,181.31,5.93941466]
[1730198632129,4.14,181.33,181.31,5.93941466]
[1730198635135,2.7587,181.34,181.31,5.93941466]
[1730198635344,4.14,181.32,181.31,5.93941466]
[1730198637144,2.71786761,181.34,181.31,5.93941466]
[1730198637339,4.14,181.32,181.31,5.93941466]
[1730198638842,4.14,181.32,181.31,8.69861466]
[1730198640138,4.14,181.32,181.3,8.69871466]
[1730198640645,4.14,181.32,181.3,5.93941466]
[1730198647443,4.14,181.32,181.31,5.93941466]
[1730198648349,4.14,181.33,181.32,2.759]
[1730198648551,4.14,181.33,181.32,8.69841466]
[1730198648753,4.14,181.33,181.32,5.93941466]
[1730198649256,59.64,181.44,181.32,5.93941466]
[1730198649451,4.14,181.43,181.38,5.93941466]
[1730198649654,6.95042117,181.43,181.38,5.93941466]
[1730198650159,2.7579,181.4,181.38,5.93941466]
[1730198650354,4.14,181.39,181.38,5.93941466]
[1730198651448,4.14,181.39,181.26,5.5199]
[1730198651650,2.7581,181.38,181.35,5.93941466]
[1730198652656,4.14,181.37,181.35,5.93941466]
[1730198652856,4.14,181.36,181.35,5.93941466]
[1730198657263,4.14,181.36,181.35,8.69801466]
[1730198659159,2.81042117,181.43,181.35,5.93941466]
[1730198659360,19.30847946,181.53,181.42,5.93941466]
[1730198659660,5.93941466,181.49,181.42,5.93941466]
[1730198660055,2.7568,181.47,181.42,5.93941466]
[1730198660259,4.14,181.46,181.44,5.93941466]
[1730198661361,4.14,181.45,181.44,5.93941466]
[1730198661964,4.14,181.45,181.33,4.14]
[1730198662156,4.14,181.45,181.43,5.93941466]
[1730198663667,2.4817,181.5,181.44,5.93941466]
[1730198663854,2.7566,181.48,181.46,5.93941466]
[1730198664367,4.14,181.48,181.47,5.93941466]
[1730198667070,2.756,181.52,181.47,8.69611466]
[1730198667369,4.14,181.51,181.5,5.93941466]
[1730198668563,4.14,181.51,181.48,5.93941466]
[1730198668758,6.8962,181.51,181.48,5.93941466]
[1730198670676,4.14,181.5,181.48,5.93941466]
[1730198671472,6.8963,181.5,181.48,5.93941466]
[1730198671972,4.14,181.5,181.49,5.93941466]
[1730198676674,2.7559,181.53,181.49,5.93941466]
[1730198676675,4.22,181.51,181.49,5.93941466]
[1730198676980,4.22,181.51,181.5,5.93941466]
[1730198677273,4.22,181.53,181.5,8.69561466]
[1730198677478,4.22,181.53,181.52,5.93941466]
[1730198679081,2.7557,181.55,181.52,5.93941466]
[1730198679289,4.22,181.53,181.41,4.22]
[1730198679475,4.22,181.53,181.52,5.93941466]
[1730198679979,6.9757,181.55,181.52,5.93941466]
[1730198680576,4.22,181.55,181.41,4.22]
[1730198680777,2.756,181.52,181.51,5.93941466]
[1730198681777,2.756,181.53,181.48,2.7566]
[1730198681983,4.22,181.55,181.5,5.93941466]
[1730198682172,10.15941466,181.55,181.4,4.22]
[1730198682373,2.7561,181.52,181.5,5.93941466]
[1730198682581,4.22,181.51,181.5,5.93941466]
[1730198693087,4.22,181.51,181.5,8.69571466]
[1730198694291,4.22,181.54,181.51,2.7561]
[1730198694592,4.22,181.54,181.53,5.93941466]
[1730198697592,6.9758,181.54,181.49,2.7564]
[1730198697798,6.9758,181.54,181.51,5.93941466]
[1730198698905,2.756,181.52,181.48,2.7565]
[1730198699106,4.22,181.54,181.51,5.93941466]
[1730198699300,4.22,181.54,181.49,5.93941466]
[1730198699903,2.756,181.52,181.47,2.7567]
[1730198700103,4.22,181.54,181.45,2.5219]
[1730198700501,5.93941466,181.52,181.4,345.2835]
[1730198700807,5.93941466,181.49,181.4,2.4359]
[1730198701108,5.93941466,181.47,181.34,6.702]
[1730198701308,8.72943782,181.47,181.4,5.93941466]
[1730198701611,2.7575,181.42,181.4,5.93941466]
[1730198701815,4.22,181.41,181.4,5.93941466]
[1730198702306,4.24,181.44,181.4,5.93941466]
[1730198702513,4.24,181.44,181.43,5.93941466]
[1730198704717,4.24,181.44,181.43,8.69671466]
[1730198704904,4.24,181.47,181.43,8.69671466]
[1730198705102,4.24,181.47,181.46,5.93941466]
[1730198705612,6.9965,181.49,181.46,5.93941466]
[1730198705809,6.9965,181.49,181.44,8.69651466]
[1730198706013,2.7569,181.46,181.41,2.7576]
[1730198706206,2.7569,181.46,181.42,5.93941466]
[1730198706207,4.24,181.45,181.42,5.93941466]
[1730198706918,4.24,181.45,181.42,8.69691466]
[1730198707718,4.24,181.45,181.44,5.93941466]
[1730198708714,4.24,181.45,181.44,8.69661466]
[1730198712712,2.7563,181.5,181.44,5.93941466]
[1730198712918,2.7563,181.5,181.35,348.24]
[1730198712919,4.24,181.48,181.46,8.69621466]
[1730198713114,2.7564,181.5,181.46,8.69621466]
[1730198713318,4.24,181.49,181.47,5.93941466]
[1730198714420,4.24,181.49,181.47,8.69611466]
[1730198714620,1.2005,181.54,181.47,5.93941466]
[1730198714916,4.24,181.53,181.5,5.93941466]
[1730198715512,4.24,181.53,181.5,8.69561466]
[1730198716219,4.24,181.53,181.5,2.7562]
[1730198716415,6.9959,181.53,181.41,1.2454]
[1730198716725,6.9959,181.53,181.48,5.93941466]
[1730198717023,6.9959,181.53,181.48,8.69591466]
[1730198718126,5.93941466,181.52,181.41,345.2454]
[1730198718326,2.7561,181.52,181.48,5.93941466]
[1730198719523,4.24,181.53,181.49,5.93941466]
[1730198719719,6.9959,181.53,181.49,5.93941466]
[1730198719923,4.24,181.53,181.49,5.93941466]
[1730198720128,4.24,181.53,181.49,8.69571466]
[1730198722421,2.756,181.52,181.48,8.69601466]
[1730198722625,5.93941466,181.5,181.41,345.2454]
[1730198722925,10.17941466,181.49,181.42,5.93941466]
[1730198723221,1.2931,181.54,181.42,5.93941466]
[1730198723222,5.93941466,181.47,181.42,5.93941466]
[1730198723427,4.24,181.46,181.42,5.93941466]
[1730198723725,6.997,181.46,181.42,5.93941466]
[1730198723925,5.93941466,181.45,181.39,5.93941466]
[1730198724124,2.7575,181.43,181.39,5.93941466]
[1730198724324,4.24,181.42,181.39,5.93941466]
[1730198724717,4.24,181.42,181.4,8.69711466]
[1730198725117,4.24,181.42,181.4,5.93941466]
[1730198725318,4.24,181.42,181.41,2.7577]
[1730198726723,4.24,181.42,181.39,2.7579]
[1730198726927,4.24,181.42,181.4,5.93941466]
[1730198728030,4.24,181.42,181.4,8.69721466]
[1730198729217,4.24,181.42,181.4,5.93941466]
[1730198729931,4.24,181.42,181.4,8.69711466]
[1730198730430,4.24,181.42,181.33,4.24]
[1730198731228,4.24,181.42,181.4,2.7577]
[1730198731421,4.24,181.42,181.4,8.69711466]
[1730198732322,4.24,181.42,181.4,5.93941466]
[1730198732521,4.24,181.42,181.41,8.69711466]
[1730198732718,4.24,181.42,181.4,5.93941466]
[1730198733130,6.9975,181.42,181.4,5.93941466]
[1730198733825,6.9975,181.42,181.4,8.69721466]
[1730198734530,4.24,181.42,181.4,8.69721466]
[1730198735230,4.24,181.42,181.4,2.7578]
[1730198735827,4.24,181.42,181.41,2.7577]
[1730198736723,4.24,181.42,181.41,1.17282115]
[1730198741129,8.1351,181.46,181.43,2.7573]
[1730198741627,8.1351,181.46,181.42,5.93941466]
[1730198741628,5.3781,181.46,181.44,2.7572]
[1730198741837,5.93941466,181.49,181.43,5.93941466]
[1730198742028,4.18,181.48,181.43,5.93941466]
[1730198742229,4.18,181.48,181.45,2.7569]
[1730198742932,4.18,181.48,181.45,5.93941466]
[1730198743732,4.18,181.48,181.47,5.93941466]
[1730198744126,4.18,181.48,181.47,8.69611466]
[1730198745234,4.18,181.5,181.47,8.69611466]
[1730198745824,4.18,181.5,181.47,5.93941466]
[1730198746028,4.18,181.5,181.48,2.7565]
[1730198748639,12.87571466,181.5,181.46,2.7568]
[1730198748934,5.93941466,181.49,181.43,5.93941466]
[1730198749130,2.7567,181.48,181.44,2.7571]
[1730198749332,2.7567,181.48,181.43,5.93941466]
[1730198749333,5.93941466,181.49,181.43,5.93941466]
[1730198750238,8.69591466,181.49,181.45,2.757]
[1730198751344,10.11941466,181.5,181.45,8.69641466]
[1730198751544,2.7566,181.48,181.45,5.93941466]
[1730198752249,5.93941466,181.48,181.41,5.93941466]
[1730198752450,5.93941466,181.46,181.36,309.59774879]
[1730198752638,4.18,181.45,181.39,5.93941466]
[1730198753742,6.9371,181.45,181.41,2.7575]
[1730198755251,4.18,181.45,181.41,2.7575]
[1730198755451,2.7572,181.44,181.41,2.7575]
[1730198756152,4.18,181.45,181.4,8.69721466]
[1730198756548,4.18,181.45,181.4,5.93941466]
[1730198756750,4.18,181.45,181.42,5.93941466]
[1730198757450,4.18,181.45,181.43,2.7573]
[1730198760045,4.18,181.46,181.44,5.93941466]
[1730198760252,4.18,181.46,181.44,8.69661466]
[1730198760454,4.18,181.46,181.44,5.93941466]
[1730198761350,4.18,181.46,181.43,2.7573]
[1730198761751,4.18,181.46,181.35,2.75956052]
[1730198761752,10.11941466,181.46,181.35,2.75956052]
[1730198761958,2.7571,181.45,181.41,2.7576]
[1730198762153,10.11941466,181.46,181.4,5.93941466]
[1730198762354,2.7574,181.43,181.38,5.93941466]
[1730198762551,4.1,181.42,181.34,1.3015]
[1730198762757,10.03941466,181.42,181.36,5.93941466]
[1730198763158,2.7577,181.41,181.37,2.7582]
[1730198763457,10.03941466,181.42,181.36,5.93941466]
[1730198763957,2.7577,181.41,181.38,2.758]
[1730198764152,10.03941466,181.42,181.36,5.93941466]
[1730198764349,2.7584,181.37,181.33,2.7588]
[1730198764564,5.93941466,181.36,181.3,5.93941466]
[1730198764863,4.1,181.37,181.33,5.93941466]
[1730198765257,4.1,181.37,181.34,2.7586]
[1730198765461,4.1,181.37,181.33,5.93941466]
[1730198765853,6.8584,181.37,181.33,8.69821466]
[1730198766354,4.1,181.36,181.33,2.7588]
[1730198768159,4.1,181.36,181.33,5.93941466]
[1730198768359,4.1,181.36,181.35,8.69801466]
[1730198770949,5.93941466,181.41,181.35,5.93941466]
[1730198771151,2.5147,181.45,181.29,1.2954]
[1730198771152,4.1,181.4,181.38,2.7581]
[1730198771354,4.1,181.39,181.38,2.7581]
[1730198773466,4.1,181.39,181.37,8.69761466]
[1730198773858,4.1,181.39,181.37,2.7582]
[1730198774567,4.1,181.39,181.38,5.93941466]
[1730198774752,4.1,181.39,181.38,8.69751466]
[1730198777065,2.7582,181.38,181.34,2.7586]
[1730198777365,2.7582,181.38,181.34,8.69801466]
[1730198778157,2.7582,181.38,181.34,5.93941466]
[1730198778358,2.7582,181.38,181.35,2.7586]
[1730198779264,6.858,181.39,181.35,2.7586]
[1730198779669,6.858,181.39,181.35,8.69801466]
[1730198780178,6.858,181.39,181.35,5.93941466]
[1730198780378,6.858,181.39,181.36,2.7584]
[1730198780974,4.1,181.39,181.38,2.7581]
[1730198781369,5.93941466,181.44,181.38,2.7581]
[1730198781571,4.1,181.43,181.37,5.93941466]
[1730198781773,2.7577,181.41,181.37,8.69761466]
[1730198782481,2.7577,181.41,181.37,2.7582]
[1730198782682,2.7582,181.38,181.29,2.5164]
[1730198782872,4.1,181.37,181.33,5.93941466]
[1730198783275,4.1,181.37,181.34,2.7586]
[1730198785681,4.1,181.37,181.33,5.93941466]
[1730198785984,4.1,181.37,181.35,2.7585]
[1730198786378,4.1,181.37,181.35,8.69791466]
[1730198788482,4.1,181.37,181.29,2.5164]
[1730198788483,4.1,181.37,181.36,2.7584]
[1730198789882,4.1,181.37,181.34,2.7587]
[1730198790079,4.1,181.37,181.28,1.2292]
[1730198790289,5.93941466,181.36,181.31,5.93941466]
[1730198790484,2.7587,181.35,181.31,8.69851466]
[1730198790685,5.93941466,181.36,181.3,5.93941466]
[1730198791287,2.7588,181.34,181.3,8.69861466]
[1730198791487,4.1,181.33,181.3,8.69861466]
[1730198792090,6.859,181.33,181.28,5.93941466]
[1730198792590,6.859,181.33,181.29,2.7594]
[1730198793182,4.1,181.33,181.3,8.69861466]
[1730198793689,4.1,181.33,181.3,5.93941466]
[1730198793878,4.1,181.33,181.31,2.7591]
[1730198795285,4.1,181.33,181.3,8.69871466]
[1730198796283,6.8589,181.33,181.3,8.69871466]
[1730198796481,4.1,181.33,181.3,8.69871466]
[1730198796885,4.1,181.33,181.3,5.93941466]
[1730198797198,2.4864,181.38,181.32,5.93941466]
[1730198797493,4.08,181.37,181.34,5.93941466]
[1730198798088,4.08,181.37,181.34,8.69811466]
[1730198798294,4.08,181.36,181.35,5.93941466]
[1730198799089,4.08,181.36,181.35,8.69791466]
[1730198799289,4.08,181.36,181.34,5.93941466]
[1730198799490,4.08,181.36,181.34,8.69801466]
[1730198799895,4.08,181.36,181.34,5.93941466]
[1730198800695,4.08,181.36,181.35,2.7586]
[1730198802285,4.08,181.36,181.34,5.93941466]
[1730198802491,4.08,181.36,181.26,5.356]
[1730198802793,4.08,181.36,181.33,5.93941466]
[1730198803394,4.08,181.36,181.31,5.93941466]
[1730198804090,2.7587,181.35,181.32,2.759]
[1730198804486,2.7587,181.35,181.31,5.93941466]
[1730198805294,2.7587,181.35,181.31,8.69851466]
[1730198807401,2.7587,181.35,181.32,8.69841466]
[1730198808502,4.08,181.36,181.32,5.93941466]
[1730198808700,4.08,181.36,181.34,5.93941466]
[1730198809199,4.08,181.36,181.34,8.69801466]
[1730198810398,4.08,181.36,181.35,2.7586]
[1730198810602,5.93941466,181.41,181.35,5.93941466]
[1730198810804,4.08,181.4,181.35,5.93941466]
[1730198811009,6.8379,181.4,181.36,2.7583]
[1730198812095,1.1986,181.42,181.35,5.93941466]
[1730198812295,1.1874,181.43,181.39,5.93941466]
[1730198812506,4.08,181.42,181.39,5.93941466]
[1730198813094,4.08,181.42,181.4,2.7578]
[1730198813502,4.08,181.42,181.39,8.69731466]
[1730198815510,4.08,181.42,181.4,2.7577]
[1730198815710,2.7571,181.45,181.41,5.93941466]
[1730198815907,4.08,181.44,181.41,5.93941466]
[1730198816407,4.08,181.45,181.43,5.93941466]
[1730198817215,4.08,181.45,181.35,4.08]
[1730198817405,4.08,181.45,181.42,5.93941466]
[1730198818006,6.8371,181.45,181.4,8.69711466]
[1730198818213,4.08,181.45,181.4,5.93941466]
[1730198819006,2.7573,181.44,181.4,5.93941466]
[1730198820308,10.01941466,181.45,181.39,5.93941466]
[1730198820506,5.93941466,181.43,181.32,2.4848]
[1730198820704,5.93941466,181.43,181.36,5.93941466]
[1730198821004,5.93941466,181.4,181.3,1.1922]
[1730198821209,10.01941466,181.39,181.32,5.93941466]
[1730198821415,12.42371466,181.39,181.32,5.93941466]
[1730198821712,2.7583,181.37,181.32,8.69831466]
[1730198823218,12.42371466,181.39,181.32,5.93941466]
[1730198823415,2.7585,181.36,181.32,5.93941466]
[1730198823721,4.16,181.35,181.32,5.93941466]
[1730198823909,5.93941466,181.37,181.3,5.93941466]
[1730198823910,6.9189,181.34,181.3,5.93941466]
[1730198825407,6.9189,181.34,181.3,8.69871466]
[1730198825609,10.09941466,181.34,181.25,2.5766]
[1730198825810,5.93941466,181.33,181.27,5.93941466]
[1730198826109,5.93941466,181.32,181.27,5.93941466]
[1730198826309,2.7593,181.3,181.27,5.93941466]
[1730198826520,4.16,181.29,181.25,8.69941466]
[1730198827315,4.16,181.29,181.25,5.93941466]
[1730198827615,4.16,181.29,181.27,5.93941466]
[1730198829118,4.16,181.29,181.28,5.93941466]
[1730198829816,4.16,181.32,181.28,5.93941466]
[1730198830013,4.16,181.32,181.31,5.93941466]
[1730198830323,2.7584,181.37,181.33,2.7589]
[1730198830622,4.16,181.36,181.34,5.93941466]
[1730198831615,2.7584,181.37,181.34,5.93941466]
[1730198831814,4.16,181.35,181.34,5.93941466]
[1730198832819,4.16,181.35,181.32,2.759]
[1730198833021,4.16,181.35,181.34,5.93941466]
[1730198835620,3.9405,181.39,181.34,5.93941466]
[1730198835922,4.16,181.38,181.37,5.93941466]
[1730198837326,4.16,181.38,181.33,5.93941466]
[1730198838221,2.7584,181.37,181.33,5.93941466]
[1730198838422,4.16,181.38,181.33,5.93941466]
[1730198840320,2.7583,181.37,181.33,8.69821466]
[1730198842022,4.16,181.38,181.35,5.93941466]
[1730198842930,6.9181,181.38,181.35,5.93941466]
[1730198843129,6.9181,181.38,181.34,5.93941466]
[1730198845428,6.9181,181.38,181.34,8.69811466]
[1730198846023,6.9181,181.38,181.34,5.93941466]
[1730198847128,6.9181,181.38,181.35,5.93941466]
[1730198847638,6.9181,181.38,181.37,5.93941466]
[1730198847639,4.16,181.38,181.37,5.93941466]
[1730198850128,4.16,181.38,181.35,8.69791466]
[1730198853730,4.16,181.38,181.37,5.93941466]
[1730198857325,4.16,181.38,181.37,8.69771466]
[1730198857534,4.16,181.38,181.35,5.93941466]
[1730198858333,4.16,181.38,181.35,8.69791466]
[1730198859729,2.7584,181.36,181.33,5.93941466]
[1730198860837,2.7584,181.36,181.33,8.69831466]
[1730198863734,4.16,181.38,181.28,4.22]
[1730198864045,6.9182,181.38,181.35,5.93941466]
[1730198867138,6.9182,181.38,181.35,8.69801466]
[1730198867534,4.16,181.38,181.37,5.93941466]
[1730198868843,4.16,181.38,181.36,2.7583]
[1730198869349,6.9181,181.38,181.35,8.69801466]
[1730198869554,4.16,181.38,181.33,5.93941466]
[1730198869843,2.7585,181.36,181.31,2.7591]
[1730198870044,5.93941466,181.37,181.31,2.7591]
[1730198870441,2.7587,181.35,181.31,2.7591]
[1730198870645,4.22,181.34,181.3,5.93941466]
[1730198870950,6.9787,181.34,181.3,8.69871466]
[1730198871249,4.22,181.34,181.3,5.93941466]
[1730198872354,4.22,181.34,181.31,2.7591]
[1730198873851,6.9787,181.34,181.31,2.7591]
[1730198874240,4.22,181.34,181.31,2.7591]
[1730198876460,4.22,181.34,181.32,5.93941466]
[1730198877556,4.22,181.34,181.25,3.6845]
[1730198877753,4.22,181.34,181.31,5.93941466]
[1730198879349,6.9788,181.34,181.31,8.69851466]
[1730198879552,4.22,181.34,181.31,8.69851466]
[1730198880861,4.22,181.34,181.32,5.93941466]
[1730198881450,4.22,181.34,181.33,2.7589]
[1730198883771,4.22,181.34,181.32,2.759]
[1730198884276,6.9788,181.34,181.29,2.7593]
[1730198884459,6.9788,181.34,181.29,5.93941466]
[1730198885265,6.9788,181.34,181.3,2.7593]
[1730198885565,10.15941466,181.34,181.29,5.93941466]
[1730198885756,10.15941466,181.34,181.3,2.7593]
[1730198885960,4.22,181.34,181.29,5.93941466]
[1730198886265,4.22,181.34,181.3,5.93941466]
[1730198887270,4.22,181.34,181.31,2.7591]
[1730198891875,4.12,181.34,181.33,2.7589]
[1730198893176,4.12,181.34,181.33,8.69831466]
[1730198893879,4.12,181.38,181.35,2.7585]
[1730198894075,1.2932,181.43,181.37,5.93941466]
[1730198894378,5.93941466,181.42,181.36,5.93941466]
[1730198894576,6.8778,181.41,181.37,2.7583]
[1730198895674,2.7581,181.39,181.34,2.7586]
[1730198896175,2.7581,181.39,181.35,8.69791466]
[1730198897984,6.8777,181.41,181.37,2.7582]
[1730198905287,6.8777,181.41,181.25,313.28224879]
[1730198905288,5.93941466,181.39,181.34,2.7586]
[1730198905884,2.7581,181.38,181.34,2.7586]
[1730198906081,2.7581,181.38,181.33,5.93941466]
[1730198906277,10.05941466,181.37,181.33,2.7587]
[1730198906483,5.93941466,181.34,181.25,313.28224879]
[1730198906682,10.05941466,181.33,181.25,2.4675]
[1730198906886,5.93941466,181.31,181.25,1.2364]
[1730198907090,4.12,181.32,181.28,5.93941466]
[1730198907283,4.12,181.32,181.29,2.7594]
[1730198907478,4.12,181.32,181.28,5.93941466]
[1730198907885,4.12,181.32,181.3,2.7592]
[1730198908086,4.12,181.32,181.3,5.93941466]
[1730198908395,4.12,181.32,181.31,8.69861466]
[1730198908587,4.12,181.34,181.31,5.93941466]
[1730198908987,4.12,181.34,181.32,2.759]
[1730198910492,4.12,181.34,181.33,8.69831466]
[1730198912688,4.12,181.37,181.34,2.7586]
[1730198912888,4.12,181.37,181.35,5.93941466]
[1730198915388,4.12,181.37,181.33,5.93941466]
[1730198915693,10.05941466,181.37,181.26,310.80174879]
[1730198915892,10.05941466,181.37,181.3,5.93941466]
[1730198916195,2.7587,181.35,181.31,2.7591]
[1730198917097,2.7587,181.34,181.31,2.7591]
[1730198920092,2.7587,181.34,181.32,5.93941466]
[1730198923103,5.93941466,181.41,181.33,5.93941466]
[1730198923285,5.93941466,181.41,181.36,5.93941466]
[1730198923286,4.12,181.4,181.36,5.93941466]
[1730198923689,2.758,181.39,181.36,5.93941466]
[1730198923990,4.12,181.4,181.36,5.93941466]
[1730198924596,2.758,181.39,181.36,5.93941466]
[1730198924888,4.12,181.4,181.36,8.69781466]
[1730198925098,6.8779,181.4,181.36,8.69781466]
[1730198925890,6.8779,181.4,181.37,2.7583]
[1730198925891,4.12,181.39,181.37,2.7583]
[1730198926703,4.12,181.39,181.36,8.69771466]
[1730198927591,6.878,181.39,181.35,8.69791466]
[1730198928902,4.12,181.38,181.35,8.69791466]
[1730198929998,4.12,181.38,181.29,4.12]
[1730198930205,6.8782,181.38,181.34,2.7587]
[1730198930497,6.8782,181.38,181.31,5.93941466]
[1730198930498,5.93941466,181.37,181.31,5.93941466]
[1730198930702,2.7587,181.35,181.31,8.69851466]
[1730198930997,4.12,181.34,181.31,5.93941466]
[1730198931600,4.12,181.34,181.32,2.759]
[1730198934404,4.12,181.34,181.33,5.93941466]
[1730198934605,4.12,181.34,181.33,8.69831466]
[1730198934791,5.93941466,181.4,181.33,5.93941466]
[1730198934997,5.93941466,181.4,181.29,2.7594]
[1730198934998,2.7586,181.35,181.29,2.7594]
[1730198935203,2.7586,181.35,181.31,5.93941466]
[1730198935403,4.12,181.35,181.31,5.93941466]
[1730198935702,4.12,181.35,181.33,8.69821466]
[1730198936496,4.12,181.35,181.33,5.93941466]
[1730198936699,4.12,181.35,181.34,2.7587]
[1730198939309,4.12,181.35,181.34,8.69811466]
[1730198941607,4.12,181.35,181.34,2.7587]
[1730198941809,4.12,181.35,181.34,8.69811466]
[1730198942113,4.12,181.38,181.34,5.93941466]
[1730198942408,4.12,181.38,181.36,8.69781466]
[1730198943813,4.04,181.38,181.37,2.7582]
[1730198944900,2.7577,181.41,181.37,2.7582]
[1730198945110,4.04,181.4,181.37,2.7582]
[1730198945411,6.7978,181.4,181.37,2.7582]
[1730198947411,4.04,181.4,181.37,5.93941466]
[1730198948115,4.04,181.4,181.38,2.7581]
[1730198948417,4.04,181.4,181.38,5.93941466]
[1730198948621,4.04,181.4,181.39,2.758]
[1730198948810,4.04,181.4,181.38,5.93941466]
[1730198949007,2.5877,181.43,181.38,5.93941466]
[1730198949311,4.04,181.4,181.38,8.69741466]
[1730198950513,4.04,181.4,181.39,2.758]
[1730198951217,4.04,181.41,181.39,2.758]
[1730198951611,4.04,181.41,181.38,8.69751466]
[1730198954619,4.04,181.41,181.39,5.93941466]
[1730198955605,65.53941466,181.45,181.32,3.7386]
[1730198955606,2.757,181.46,181.42,2.7575]
[1730198955815,4.04,181.45,181.42,5.93941466]
[1730198956314,6.797,181.45,181.42,5.93941466]
[1730198956915,6.797,181.45,181.41,8.69701466]
[1730198957112,5.93941466,181.42,181.32,3.7386]
[1730198957321,4.04,181.41,181.36,5.93941466]
[1730198957508,5.93941466,181.4,181.32,1.2584]
[1730198957813,2.7581,181.39,181.35,2.7585]
[1730198959724,6.7978,181.41,181.37,2.7582]
[1730198959919,6.7978,181.41,181.37,8.69761466]
[1730198960719,6.7978,181.41,181.37,5.93941466]
[1730198960912,6.7978,181.41,181.38,2.7581]
[1730198961715,4.04,181.4,181.38,2.7581]
[1730198967520,4.04,181.4,181.39,2.758]
[1730198969331,4.04,181.4,181.39,8.69741466]
[1730198971527,4.04,181.4,181.39,2.758]
[1730198971928,4.04,181.4,181.33,1.2182]
[1730198972231,4.04,181.4,181.36,5.93941466]
[1730198972425,6.7979,181.4,181.37,2.7582]
[1730198973034,6.7979,181.4,181.38,2.7581]
[1730198974131,4.04,181.4,181.38,2.7581]
[1730198975933,4.04,181.4,181.38,2.758]
[1730198976136,4.04,181.4,181.39,5.93941466]
[1730198976635,4.04,181.4,181.39,2.758]
[1730198978032,4.04,181.4,181.38,5.93941466]
[1730198978234,4.04,181.4,181.37,2.7582]
[1730198978432,9.97941466,181.4,181.34,5.93941466]
[1730198979239,2.7581,181.38,181.36,2.7584]
[1730198982542,2.7584,181.36,181.33,2.7588]